[Event "December 19 Early 2023"]
[Site "https://www.chess.com"]
[Date "2023.12.19"]
[Round "3"]
[White "Yeletsky, Ivan"]
[Black "Stepanencu, Nicodim-Cosmin"]
[Result "0-1"]
[Board "41"]
[TimeControl "180+1"]
[WhiteFideId "24180327"]
[BlackFideId "1256220"]
[WhiteElo "2379"]
[BlackElo "2154"]
[WhiteTeam "RUS"]
[BlackTeam "ROU"]
[WhiteClock "0:00:07"]
[BlackClock "0:00:03"]

1. e4 {[%clk 0:03:00]}  e6 {[%clk 0:02:59]} 2. Qe2 {[%clk 0:02:59]}  c5 {[%clk 0:02:57]} 3. d3 {[%clk 0:02:59]}  Nc6 {[%clk 0:02:56]} 4. g3 {[%clk 0:02:59]}  g6 {[%clk 0:02:51]} 5. Nf3 {[%clk 0:02:57]}  Bg7 {[%clk 0:02:51]} 6. Bg5 {[%clk 0:02:57]}  Qa5+ {[%clk 0:02:41]} 7. c3 {[%clk 0:02:52]}  Nd4 {[%clk 0:02:36]} 8. Qd1 {[%clk 0:02:45]}  Nxf3+ {[%clk 0:01:59]} 9. Qxf3 {[%clk 0:02:44]}  c4 {[%clk 0:02:00]} 10. h4 {[%clk 0:02:39]}  Qb6 {[%clk 0:01:52]} 11. Bc1 {[%clk 0:02:29]}  cxd3 {[%clk 0:01:50]} 12. h5 {[%clk 0:02:27]}  Ne7 {[%clk 0:01:16]} 13. Bxd3 {[%clk 0:02:14]}  d5 {[%clk 0:00:54]} 14. Qe2 {[%clk 0:01:55]}  dxe4 {[%clk 0:00:47]} 15. Bxe4 {[%clk 0:01:54]}  Bd7 {[%clk 0:00:43]} 16. Nd2 {[%clk 0:01:49]}  Bb5 {[%clk 0:00:41]} 17. Nc4 {[%clk 0:01:46]}  Bxc4 {[%clk 0:00:37]} 18. Qxc4 {[%clk 0:01:46]}  O-O {[%clk 0:00:38]} 19. hxg6 {[%clk 0:01:45]}  hxg6 {[%clk 0:00:34]} 20. Qf1 {[%clk 0:01:20]}  Rfd8 {[%clk 0:00:19]} 21. Qh3 {[%clk 0:01:19]}  Nf5 {[%clk 0:00:17]} 22. g4 {[%clk 0:01:17]}  Qd6 {[%clk 0:00:07]} 23. Kf1 {[%clk 0:01:11]}  Ne7 {[%clk 0:00:04]} 24. Bg5 {[%clk 0:00:53]}  Kf8 {[%clk 0:00:04]} 25. Kg2 {[%clk 0:00:47]}  Qe5 {[%clk 0:00:05]} 26. Qe3 {[%clk 0:00:43]}  Nd5 {[%clk 0:00:02]} 27. Qc5+ {[%clk 0:00:43]}  Kg8 {[%clk 0:00:02]} 28. Bxd8 {[%clk 0:00:18]}  Nf4+ {[%clk 0:00:02]} 29. Kf3 {[%clk 0:00:13]}  Qxc5 {[%clk 0:00:03]} 30. Rae1 {[%clk 0:00:13]}  Rxd8 {[%clk 0:00:02]} 31. Kxf4 {[%clk 0:00:10]}  Qxf2+ {[%clk 0:00:03]} 32. Bf3 {[%clk 0:00:07]}  Rd3 {[%clk 0:00:03]} 0-1

[Event "December 19 Early 2023"]
[Site "https://www.chess.com"]
[Date "2023.12.19"]
[Round "3"]
[White "Smolka, Marcin"]
[Black "Maksimovic, Bojan"]
[Result "0-1"]
[Board "44"]
[TimeControl "180+1"]
[WhiteFideId "1139681"]
[BlackFideId "14408120"]
[WhiteElo "2117"]
[BlackElo "2527"]
[WhiteTeam "POL"]
[BlackTeam "BIH"]
[WhiteClock "0:00:15"]
[BlackClock "0:00:22"]

1. e4 {[%clk 0:03:00]}  a6 {[%clk 0:02:59]} 2. d4 {[%clk 0:03:00]}  c6 {[%clk 0:02:59]} 3. Nc3 {[%clk 0:02:59]}  d5 {[%clk 0:03:00]} 4. Nf3 {[%clk 0:02:47]}  Bg4 {[%clk 0:02:59]} 5. h3 {[%clk 0:02:43]}  Bh5 {[%clk 0:02:59]} 6. Be2 {[%clk 0:02:40]}  e6 {[%clk 0:02:58]} 7. O-O {[%clk 0:02:40]}  Nf6 {[%clk 0:02:52]} 8. Qd3 {[%clk 0:02:28]}  Bg6 {[%clk 0:02:49]} 9. Bg5 {[%clk 0:02:18]}  dxe4 {[%clk 0:02:41]} 10. Nxe4 {[%clk 0:01:42]}  Bxe4 {[%clk 0:02:32]} 11. Qb3 {[%clk 0:01:43]}  Qc7 {[%clk 0:01:57]} 12. Rfe1 {[%clk 0:01:42]}  Nbd7 {[%clk 0:01:54]} 13. Bh4 {[%clk 0:01:40]}  Bd6 {[%clk 0:01:45]} 14. c4 {[%clk 0:01:40]}  O-O {[%clk 0:01:42]} 15. Ng5 {[%clk 0:01:39]}  Bg6 {[%clk 0:01:40]} 16. c5 {[%clk 0:01:39]}  Be7 {[%clk 0:01:40]} 17. Nxe6 {[%clk 0:01:34]}  fxe6 {[%clk 0:01:38]} 18. Qxe6+ {[%clk 0:01:34]}  Rf7 {[%clk 0:01:37]} 19. Bc4 {[%clk 0:01:35]}  Bf8 {[%clk 0:01:27]} 20. Bg3 {[%clk 0:01:26]}  Qc8 {[%clk 0:01:24]} 21. f4 {[%clk 0:01:24]}  Nd5 {[%clk 0:01:23]} 22. Bxd5 {[%clk 0:01:05]}  cxd5 {[%clk 0:01:24]} 23. Qxd5 {[%clk 0:01:06]}  Nf6 {[%clk 0:01:23]} 24. Qb3 {[%clk 0:01:05]}  Qc6 {[%clk 0:01:17]} 25. Re5 {[%clk 0:01:03]}  Be4 {[%clk 0:01:12]} 26. Re1 {[%clk 0:01:02]}  Bxg2 {[%clk 0:01:07]} 27. Bh4 {[%clk 0:00:55]}  Bd5 {[%clk 0:01:02]} 28. Qg3 {[%clk 0:00:55]}  Kh8 {[%clk 0:00:48]} 29. Kh2 {[%clk 0:00:55]}  g6 {[%clk 0:00:40]} 30. f5 {[%clk 0:00:54]}  gxf5 {[%clk 0:00:30]} 31. Rxf5 {[%clk 0:00:51]}  Bg7 {[%clk 0:00:30]} 32. Bxf6 {[%clk 0:00:38]}  Bxf6 {[%clk 0:00:27]} 33. Qf4 {[%clk 0:00:31]}  Raf8 {[%clk 0:00:25]} 34. Rf1 {[%clk 0:00:20]}  Be6 {[%clk 0:00:22]} 35. Rxf6 {[%clk 0:00:18]}  Rxf6 {[%clk 0:00:23]} 36. Qe5 {[%clk 0:00:15]}  Bd5 {[%clk 0:00:22]} 0-1

[Event "December 19 Early 2023"]
[Site "https://www.chess.com"]
[Date "2023.12.19"]
[Round "3"]
[White "Kravtsiv, Martyn"]
[Black "Gong, Qianyun"]
[Result "1-0"]
[Board "45"]
[TimeControl "180+1"]
[WhiteFideId "14113147"]
[BlackFideId "8602425"]
[WhiteElo "2689"]
[BlackElo "2157"]
[WhiteTeam "UKR"]
[BlackTeam "SGP"]
[WhiteClock "0:00:05"]
[BlackClock "0:00:10"]

1. e4 {[%clk 0:03:00]}  e6 {[%clk 0:02:59]} 2. d4 {[%clk 0:03:00]}  d5 {[%clk 0:02:59]} 3. e5 {[%clk 0:02:59]}  c5 {[%clk 0:02:59]} 4. c3 {[%clk 0:03:00]}  Nc6 {[%clk 0:02:59]} 5. Nf3 {[%clk 0:03:00]}  Nge7 {[%clk 0:02:59]} 6. Na3 {[%clk 0:02:58]}  cxd4 {[%clk 0:02:56]} 7. cxd4 {[%clk 0:02:59]}  Nf5 {[%clk 0:02:56]} 8. Nc2 {[%clk 0:02:59]}  Qb6 {[%clk 0:02:53]} 9. Be2 {[%clk 0:02:58]}  Be7 {[%clk 0:02:44]} 10. h4 {[%clk 0:02:52]}  h5 {[%clk 0:02:35]} 11. g3 {[%clk 0:02:49]}  Bd7 {[%clk 0:02:33]} 12. O-O {[%clk 0:02:48]}  O-O-O {[%clk 0:02:27]} 13. Rb1 {[%clk 0:02:45]}  Kb8 {[%clk 0:02:26]} 14. b4 {[%clk 0:02:45]}  f6 {[%clk 0:02:26]} 15. Bf4 {[%clk 0:02:24]}  Ka8 {[%clk 0:02:23]} 16. Bd3 {[%clk 0:02:09]}  Ncxd4 {[%clk 0:01:54]} 17. Nfxd4 {[%clk 0:01:40]}  Nxd4 {[%clk 0:01:52]} 18. Nxd4 {[%clk 0:01:36]}  Qxd4 {[%clk 0:01:50]} 19. exf6 {[%clk 0:01:34]}  gxf6 {[%clk 0:01:42]} 20. Be3 {[%clk 0:01:30]}  Qe5 {[%clk 0:01:42]} 21. b5 {[%clk 0:01:30]}  Rhg8 {[%clk 0:01:32]} 22. Re1 {[%clk 0:01:24]}  d4 {[%clk 0:01:19]} 23. Bd2 {[%clk 0:01:08]}  Rxg3+ {[%clk 0:01:10]} 24. Kf1 {[%clk 0:01:07]}  Rxd3 {[%clk 0:00:45]} 25. Rxe5 {[%clk 0:01:07]}  fxe5 {[%clk 0:00:46]} 26. Qe2 {[%clk 0:01:07]}  e4 {[%clk 0:00:44]} 27. Bg5 {[%clk 0:01:06]}  Bxg5 {[%clk 0:00:38]} 28. hxg5 {[%clk 0:01:07]}  e5 {[%clk 0:00:38]} 29. Qxe4 {[%clk 0:01:04]}  Rh3 {[%clk 0:00:28]} 30. g6 {[%clk 0:00:51]}  d3 {[%clk 0:00:23]} 31. Kg2 {[%clk 0:00:44]}  Bg4 {[%clk 0:00:17]} 32. Qxe5 {[%clk 0:00:27]}  d2 {[%clk 0:00:17]} 33. g7 {[%clk 0:00:21]}  Rhd3 {[%clk 0:00:17]} 34. Qg5 {[%clk 0:00:17]}  Bf3+ {[%clk 0:00:17]} 35. Kh2 {[%clk 0:00:16]}  d1=Q {[%clk 0:00:17]} 36. Rxd1 {[%clk 0:00:16]}  Rxd1 {[%clk 0:00:18]} 37. g8=Q {[%clk 0:00:15]}  Rh1+ {[%clk 0:00:18]} 38. Kg3 {[%clk 0:00:16]}  Rg1+ {[%clk 0:00:18]} 39. Kxf3 {[%clk 0:00:14]}  Rxg8 {[%clk 0:00:19]} 40. Qxh5 {[%clk 0:00:14]}  Rf8+ {[%clk 0:00:19]} 41. Ke2 {[%clk 0:00:14]}  Rgg8 {[%clk 0:00:20]} 42. f3 {[%clk 0:00:13]}  Re8+ {[%clk 0:00:21]} 43. Kf2 {[%clk 0:00:14]}  Rh8 {[%clk 0:00:21]} 44. Qd5 {[%clk 0:00:13]}  Rd8 {[%clk 0:00:20]} 45. Qb3 {[%clk 0:00:12]}  Rh2+ {[%clk 0:00:20]} 46. Kg3 {[%clk 0:00:12]}  Rdh8 {[%clk 0:00:19]} 47. Qe6 {[%clk 0:00:11]}  Rh1 {[%clk 0:00:19]} 48. a4 {[%clk 0:00:11]}  Rg1+ {[%clk 0:00:17]} 49. Kf2 {[%clk 0:00:10]}  Rd1 {[%clk 0:00:16]} 50. Qe5 {[%clk 0:00:10]}  Rd2+ {[%clk 0:00:16]} 51. Ke3 {[%clk 0:00:10]}  Rdd8 {[%clk 0:00:17]} 52. Kf2 {[%clk 0:00:09]}  Rhe8 {[%clk 0:00:17]} 53. Qc3 {[%clk 0:00:09]}  Rc8 {[%clk 0:00:16]} 54. Qb2 {[%clk 0:00:09]}  Rf8 {[%clk 0:00:16]} 55. Qd2 {[%clk 0:00:08]}  Rcd8 {[%clk 0:00:15]} 56. Qe3 {[%clk 0:00:08]}  Rde8 {[%clk 0:00:15]} 57. Qc5 {[%clk 0:00:08]}  Rc8 {[%clk 0:00:15]} 58. Qa3 {[%clk 0:00:08]}  Rc2+ {[%clk 0:00:15]} 59. Ke3 {[%clk 0:00:08]}  Rcc8 {[%clk 0:00:15]} 60. f4 {[%clk 0:00:07]}  Rce8+ {[%clk 0:00:15]} 61. Kf3 {[%clk 0:00:08]}  Rd8 {[%clk 0:00:15]} 62. Qb4 {[%clk 0:00:08]}  Rh8 {[%clk 0:00:15]} 63. f5 {[%clk 0:00:07]}  Rh3+ {[%clk 0:00:15]} 64. Kg4 {[%clk 0:00:07]}  Rhd3 {[%clk 0:00:15]} 65. Qe7 {[%clk 0:00:07]}  R3d4+ {[%clk 0:00:14]} 66. Kg5 {[%clk 0:00:07]}  R4d7 {[%clk 0:00:14]} 67. Qe6 {[%clk 0:00:06]}  Rd6 {[%clk 0:00:14]} 68. Qe7 {[%clk 0:00:06]}  R6d7 {[%clk 0:00:14]} 69. Qe2 {[%clk 0:00:06]}  Rd2 {[%clk 0:00:14]} 70. Qe1 {[%clk 0:00:05]}  Rg2+ {[%clk 0:00:14]} 71. Kf6 {[%clk 0:00:05]}  Rf8+ {[%clk 0:00:14]} 72. Ke7 {[%clk 0:00:03]}  Rxf5 {[%clk 0:00:14]} 73. Qe6 {[%clk 0:00:04]}  Rc5 {[%clk 0:00:09]} 74. Kd6 {[%clk 0:00:04]}  Rgc2 {[%clk 0:00:09]} 75. Qd7 {[%clk 0:00:01]}  Rc8 {[%clk 0:00:09]} 76. Ke6 {[%clk 0:00:01]}  Re2+ {[%clk 0:00:09]} 77. Kf5 {[%clk 0:00:01]}  Rf2+ {[%clk 0:00:09]} 78. Kg4 {[%clk 0:00:01]}  Rff8 {[%clk 0:00:09]} 79. Kg3 {[%clk 0:00:01]}  Rg8+ {[%clk 0:00:09]} 80. Kf3 {[%clk 0:00:02]}  Rce8 {[%clk 0:00:10]} 81. a5 {[%clk 0:00:01]}  Rgf8+ {[%clk 0:00:10]} 82. Kg3 {[%clk 0:00:02]}  Rg8+ {[%clk 0:00:10]} 83. Kf3 {[%clk 0:00:02]}  Rd8 {[%clk 0:00:11]} 84. Qe7 {[%clk 0:00:02]}  Rge8 {[%clk 0:00:11]} 85. Qc7 {[%clk 0:00:02]}  Rf8+ {[%clk 0:00:11]} 86. Kg3 {[%clk 0:00:02]}  Rc8 {[%clk 0:00:12]} 87. Qd7 {[%clk 0:00:02]}  Rcd8 {[%clk 0:00:12]} 88. Qc7 {[%clk 0:00:02]}  Rg8+ {[%clk 0:00:12]} 89. Kf3 {[%clk 0:00:02]}  Rd3+ {[%clk 0:00:12]} 90. Ke4 {[%clk 0:00:02]}  Rd1 {[%clk 0:00:12]} 91. a6 {[%clk 0:00:02]}  Re1+ {[%clk 0:00:13]} 92. Kf3 {[%clk 0:00:02]}  bxa6 {[%clk 0:00:12]} 93. bxa6 {[%clk 0:00:02]}  Rb1 {[%clk 0:00:11]} 94. Qc6+ {[%clk 0:00:02]}  Kb8 {[%clk 0:00:11]} 95. Qd6+ {[%clk 0:00:03]}  Kc8 {[%clk 0:00:11]} 96. Qe6+ {[%clk 0:00:03]}  Kc7 {[%clk 0:00:11]} 97. Qxg8 {[%clk 0:00:03]}  Rf1+ {[%clk 0:00:11]} 98. Ke2 {[%clk 0:00:04]}  Rf6 {[%clk 0:00:11]} 99. Qc4+ {[%clk 0:00:03]}  Rc6 {[%clk 0:00:10]} 100. Qb5 {[%clk 0:00:04]}  Rb6 {[%clk 0:00:10]} 101. Qc5+ {[%clk 0:00:04]}  Kb8 {[%clk 0:00:10]} 102. Qf8+ {[%clk 0:00:04]}  Kc7 {[%clk 0:00:10]} 103. Qe7+ {[%clk 0:00:04]}  Kb8 {[%clk 0:00:10]} 104. Qd8# {[%clk 0:00:05]} 1-0

[Event "December 19 Early 2023"]
[Site "https://www.chess.com"]
[Date "2023.12.19"]
[Round "3"]
[White "Silva Lucena, Cristian"]
[Black "Klymchuk, Andriy"]
[Result "1/2-1/2"]
[Board "46"]
[TimeControl "180+1"]
[WhiteFideId "2232588"]
[BlackFideId "14140063"]
[WhiteElo "2248"]
[BlackElo "2487"]
[WhiteTeam "ESP"]
[BlackTeam "UKR"]
[WhiteClock "0:00:05"]
[BlackClock "0:00:24"]

1. Nf3 {[%clk 0:02:57]}  c5 {[%clk 0:02:59]} 2. e4 {[%clk 0:02:56]}  g6 {[%clk 0:02:58]} 3. d4 {[%clk 0:02:56]}  cxd4 {[%clk 0:02:59]} 4. Nxd4 {[%clk 0:02:57]}  Nc6 {[%clk 0:02:58]} 5. Nc3 {[%clk 0:02:57]}  Bg7 {[%clk 0:02:58]} 6. Be3 {[%clk 0:02:57]}  Nf6 {[%clk 0:02:58]} 7. Bc4 {[%clk 0:02:58]}  Qa5 {[%clk 0:02:58]} 8. O-O {[%clk 0:02:57]}  d6 {[%clk 0:02:57]} 9. Bb3 {[%clk 0:02:57]}  Ng4 {[%clk 0:02:57]} 10. Nxc6 {[%clk 0:02:30]}  bxc6 {[%clk 0:02:56]} 11. Bd2 {[%clk 0:02:30]}  Qe5 {[%clk 0:02:51]} 12. g3 {[%clk 0:02:23]}  Qh5 {[%clk 0:02:50]} 13. h4 {[%clk 0:02:22]}  h6 {[%clk 0:02:46]} 14. Kg2 {[%clk 0:02:11]}  Rb8 {[%clk 0:02:28]} 15. Qe2 {[%clk 0:02:03]}  Ne5 {[%clk 0:02:17]} 16. Qxh5 {[%clk 0:01:59]}  gxh5 {[%clk 0:02:18]} 17. f3 {[%clk 0:01:54]}  Ba6 {[%clk 0:02:11]} 18. Rfe1 {[%clk 0:01:46]}  Nc4 {[%clk 0:01:58]} 19. Bc1 {[%clk 0:01:09]}  e6 {[%clk 0:01:44]} 20. Bxc4 {[%clk 0:01:02]}  Bxc4 {[%clk 0:01:43]} 21. Nd1 {[%clk 0:01:03]}  Rg8 {[%clk 0:01:34]} 22. Bf4 {[%clk 0:01:02]}  Kd7 {[%clk 0:01:23]} 23. c3 {[%clk 0:00:54]}  a5 {[%clk 0:01:17]} 24. b3 {[%clk 0:00:53]}  Ba6 {[%clk 0:01:16]} 25. e5 {[%clk 0:00:50]}  d5 {[%clk 0:01:11]} 26. Nb2 {[%clk 0:00:51]}  c5 {[%clk 0:01:08]} 27. c4 {[%clk 0:00:47]}  Kc6 {[%clk 0:01:03]} 28. cxd5+ {[%clk 0:00:42]}  exd5 {[%clk 0:01:03]} 29. Rac1 {[%clk 0:00:42]}  Rbc8 {[%clk 0:00:54]} 30. Na4 {[%clk 0:00:40]}  Bf8 {[%clk 0:00:47]} 31. e6 {[%clk 0:00:39]}  fxe6 {[%clk 0:00:27]} 32. Rxe6+ {[%clk 0:00:40]}  Kb7 {[%clk 0:00:27]} 33. Rd1 {[%clk 0:00:23]}  d4 {[%clk 0:00:25]} 34. Rde1 {[%clk 0:00:19]}  Rc6 {[%clk 0:00:23]} 35. Rxc6 {[%clk 0:00:15]}  Kxc6 {[%clk 0:00:24]} 36. Re6+ {[%clk 0:00:15]}  Kb7 {[%clk 0:00:24]} 37. Rb6+ {[%clk 0:00:15]}  Ka7 {[%clk 0:00:24]} 38. Bb8+ {[%clk 0:00:14]}  Ka8 {[%clk 0:00:25]} 39. Bf4 {[%clk 0:00:13]}  Ka7 {[%clk 0:00:25]} 40. Bb8+ {[%clk 0:00:11]}  Ka8 {[%clk 0:00:25]} 41. Be5 {[%clk 0:00:11]}  Ka7 {[%clk 0:00:24]} 42. Bb8+ {[%clk 0:00:05]} 1/2-1/2

[Event "December 19 Early 2023"]
[Site "https://www.chess.com"]
[Date "2023.12.19"]
[Round "3"]
[White "Beerdsen, Thomas"]
[Black "Teterev, Vitaly"]
[Result "1-0"]
[Board "47"]
[TimeControl "180+1"]
[WhiteFideId "1030108"]
[BlackFideId "13501429"]
[WhiteElo "2550"]
[BlackElo "2299"]
[WhiteTeam "NED"]
[BlackTeam "BLR"]
[WhiteClock "0:00:28"]
[BlackClock "0:00:00"]

1. e4 {[%clk 0:03:00]}  c5 {[%clk 0:02:54]} 2. Nf3 {[%clk 0:03:00]}  d6 {[%clk 0:02:54]} 3. d4 {[%clk 0:03:01]}  cxd4 {[%clk 0:02:55]} 4. Nxd4 {[%clk 0:03:02]}  Nf6 {[%clk 0:02:55]} 5. Nc3 {[%clk 0:03:02]}  a6 {[%clk 0:02:55]} 6. a3 {[%clk 0:03:03]}  e6 {[%clk 0:02:54]} 7. g4 {[%clk 0:03:02]}  b5 {[%clk 0:02:53]} 8. g5 {[%clk 0:03:03]}  Nfd7 {[%clk 0:02:53]} 9. h4 {[%clk 0:03:03]}  Bb7 {[%clk 0:02:54]} 10. h5 {[%clk 0:03:02]}  Nc6 {[%clk 0:02:47]} 11. Be3 {[%clk 0:03:02]}  Nce5 {[%clk 0:02:45]} 12. f4 {[%clk 0:03:00]}  Nc6 {[%clk 0:02:28]} 13. Bh3 {[%clk 0:02:57]}  Nxd4 {[%clk 0:02:24]} 14. Qxd4 {[%clk 0:02:57]}  e5 {[%clk 0:02:24]} 15. Bxd7+ {[%clk 0:02:51]}  Qxd7 {[%clk 0:02:20]} 16. fxe5 {[%clk 0:02:52]}  dxe5 {[%clk 0:01:53]} 17. Qxe5+ {[%clk 0:02:53]}  Qe7 {[%clk 0:01:53]} 18. Qf4 {[%clk 0:02:48]}  O-O-O {[%clk 0:01:48]} 19. O-O {[%clk 0:02:36]}  Qe6 {[%clk 0:01:42]} 20. Rad1 {[%clk 0:02:25]}  Bd6 {[%clk 0:01:03]} 21. Qf5 {[%clk 0:02:26]}  Be5 {[%clk 0:00:58]} 22. Rd3 {[%clk 0:02:03]}  g6 {[%clk 0:00:45]} 23. Qxe6+ {[%clk 0:02:00]}  fxe6 {[%clk 0:00:45]} 24. h6 {[%clk 0:01:59]}  Rhf8 {[%clk 0:00:40]} 25. Rxd8+ {[%clk 0:01:56]}  Rxd8 {[%clk 0:00:40]} 26. Rf7 {[%clk 0:01:55]}  Rd7 {[%clk 0:00:39]} 27. Rf8+ {[%clk 0:01:51]}  Kc7 {[%clk 0:00:36]} 28. Bf4 {[%clk 0:01:47]}  Kd6 {[%clk 0:00:22]} 29. Bxe5+ {[%clk 0:01:02]}  Kxe5 {[%clk 0:00:23]} 30. Rg8 {[%clk 0:01:03]}  Bxe4 {[%clk 0:00:20]} 31. Rg7 {[%clk 0:01:02]}  Rd2 {[%clk 0:00:18]} 32. Nxe4 {[%clk 0:00:58]}  Kxe4 {[%clk 0:00:19]} 33. Rxh7 {[%clk 0:00:59]}  Rxc2 {[%clk 0:00:15]} 34. Rg7 {[%clk 0:00:50]}  Kf3 {[%clk 0:00:06]} 35. Rxg6 {[%clk 0:00:32]}  Kg4 {[%clk 0:00:00]} 36. h7 {[%clk 0:00:28]} 1-0

[Event "December 19 Early 2023"]
[Site "https://www.chess.com"]
[Date "2023.12.19"]
[Round "3"]
[White "Khamdamova, Afruza"]
[Black "Durarbayli, Vasif"]
[Result "1/2-1/2"]
[Board "49"]
[TimeControl "180+1"]
[WhiteFideId "14210444"]
[BlackFideId "13402935"]
[WhiteElo "2295"]
[BlackElo "2551"]
[WhiteTeam "UZB"]
[BlackTeam "AZE"]
[WhiteClock "0:00:42"]
[BlackClock "0:00:03"]

1. e4 {[%clk 0:03:00]}  e5 {[%clk 0:02:59]} 2. Nf3 {[%clk 0:03:01]}  Nc6 {[%clk 0:03:00]} 3. Bb5 {[%clk 0:03:01]}  a6 {[%clk 0:02:59]} 4. Ba4 {[%clk 0:03:01]}  Nf6 {[%clk 0:03:00]} 5. O-O {[%clk 0:03:01]}  Be7 {[%clk 0:03:00]} 6. Re1 {[%clk 0:03:01]}  b5 {[%clk 0:03:01]} 7. Bb3 {[%clk 0:03:01]}  O-O {[%clk 0:03:02]} 8. c3 {[%clk 0:03:02]}  d5 {[%clk 0:03:02]} 9. exd5 {[%clk 0:03:01]}  Nxd5 {[%clk 0:03:03]} 10. Nxe5 {[%clk 0:03:01]}  Nxe5 {[%clk 0:03:04]} 11. Rxe5 {[%clk 0:03:01]}  c6 {[%clk 0:03:05]} 12. d4 {[%clk 0:03:01]}  Bd6 {[%clk 0:03:05]} 13. Re1 {[%clk 0:03:01]}  Qh4 {[%clk 0:03:01]} 14. g3 {[%clk 0:03:01]}  Qh3 {[%clk 0:03:02]} 15. Be3 {[%clk 0:03:01]}  Bg4 {[%clk 0:03:00]} 16. Qd3 {[%clk 0:03:01]}  Rae8 {[%clk 0:02:53]} 17. Nd2 {[%clk 0:03:01]}  f5 {[%clk 0:02:40]} 18. f4 {[%clk 0:03:01]}  g5 {[%clk 0:02:37]} 19. Qf1 {[%clk 0:02:33]}  Qxf1+ {[%clk 0:01:45]} 20. Nxf1 {[%clk 0:02:25]}  gxf4 {[%clk 0:01:45]} 21. Bxf4 {[%clk 0:02:24]}  Bxf4 {[%clk 0:01:45]} 22. gxf4 {[%clk 0:02:24]}  Kg7 {[%clk 0:01:10]} 23. Bxd5 {[%clk 0:02:23]}  cxd5 {[%clk 0:01:11]} 24. Re5 {[%clk 0:02:19]}  Bf3 {[%clk 0:01:11]} 25. Kf2 {[%clk 0:02:17]}  Be4 {[%clk 0:01:11]} 26. Ng3 {[%clk 0:02:10]}  Kf6 {[%clk 0:01:03]} 27. Ke3 {[%clk 0:02:10]}  Rg8 {[%clk 0:00:43]} 28. a4 {[%clk 0:02:10]}  b4 {[%clk 0:00:36]} 29. cxb4 {[%clk 0:02:06]}  Rc8 {[%clk 0:00:36]} 30. b5 {[%clk 0:01:36]}  Rc2 {[%clk 0:00:28]} 31. bxa6 {[%clk 0:01:22]}  Rxh2 {[%clk 0:00:24]} 32. Rg1 {[%clk 0:00:57]}  Rb8 {[%clk 0:00:19]} 33. Nxe4+ {[%clk 0:00:53]}  fxe4 {[%clk 0:00:20]} 34. Rc1 {[%clk 0:00:42]}  Rh3+ {[%clk 0:00:10]} 35. Kf2 {[%clk 0:00:41]}  Rxb2+ {[%clk 0:00:11]} 36. Kg1 {[%clk 0:00:41]}  Rg3+ {[%clk 0:00:09]} 37. Kh1 {[%clk 0:00:41]}  Rh3+ {[%clk 0:00:04]} 38. Kg1 {[%clk 0:00:41]}  Rg3+ {[%clk 0:00:02]} 39. Kh1 {[%clk 0:00:42]}  Rh3+ {[%clk 0:00:03]} 40. Kg1 {[%clk 0:00:42]} 1/2-1/2

[Event "December 19 Early 2023"]
[Site "https://www.chess.com"]
[Date "2023.12.19"]
[Round "3"]
[White "Haug, Havard"]
[Black "Asish Panda"]
[Result "1-0"]
[Board "50"]
[TimeControl "180+1"]
[WhiteFideId "1547887"]
[BlackFideId "45012458"]
[WhiteElo "2343"]
[BlackElo "1767"]
[WhiteTeam "NOR"]
[BlackTeam "IND"]
[WhiteClock "0:01:48"]
[BlackClock "0:00:00"]

1. e4 {[%clk 0:03:00]}  e6 {[%clk 0:02:59]} 2. d4 {[%clk 0:02:56]}  d5 {[%clk 0:02:59]} 3. e5 {[%clk 0:02:56]}  c5 {[%clk 0:02:59]} 4. c3 {[%clk 0:02:56]}  Nc6 {[%clk 0:02:59]} 5. Nf3 {[%clk 0:02:56]}  Qb6 {[%clk 0:02:58]} 6. Bd3 {[%clk 0:02:55]}  cxd4 {[%clk 0:02:57]} 7. cxd4 {[%clk 0:02:55]}  Bd7 {[%clk 0:02:57]} 8. Bc2 {[%clk 0:02:55]}  g6 {[%clk 0:02:57]} 9. O-O {[%clk 0:02:53]}  Bg7 {[%clk 0:02:56]} 10. Nc3 {[%clk 0:02:52]}  Nge7 {[%clk 0:02:56]} 11. b3 {[%clk 0:02:47]}  O-O {[%clk 0:02:51]} 12. Be3 {[%clk 0:02:47]}  Nf5 {[%clk 0:02:35]} 13. Bxf5 {[%clk 0:02:46]}  gxf5 {[%clk 0:02:34]} 14. Qd2 {[%clk 0:02:45]}  f6 {[%clk 0:02:25]} 15. exf6 {[%clk 0:02:36]}  Bxf6 {[%clk 0:02:25]} 16. Ne2 {[%clk 0:02:36]}  Rac8 {[%clk 0:02:02]} 17. Nf4 {[%clk 0:02:33]}  Ne7 {[%clk 0:01:46]} 18. Nh5 {[%clk 0:02:27]}  Ng6 {[%clk 0:01:37]} 19. Bh6 {[%clk 0:02:15]}  Rf7 {[%clk 0:01:27]} 20. Nxf6+ {[%clk 0:02:15]}  Rxf6 {[%clk 0:01:27]} 21. Qg5 {[%clk 0:02:16]}  Qd8 {[%clk 0:00:29]} 22. h4 {[%clk 0:02:13]}  Rf7 {[%clk 0:00:22]} 23. h5 {[%clk 0:02:04]}  Qxg5 {[%clk 0:00:19]} 24. Nxg5 {[%clk 0:02:05]}  Nf4 {[%clk 0:00:15]} 25. Nxf7 {[%clk 0:02:02]}  Ne2+ {[%clk 0:00:15]} 26. Kh2 {[%clk 0:02:02]}  Kxf7 {[%clk 0:00:15]} 27. Rfd1 {[%clk 0:01:52]}  b5 {[%clk 0:00:10]} 28. Rd2 {[%clk 0:01:52]}  Nc3 {[%clk 0:00:09]} 29. f3 {[%clk 0:01:52]}  b4 {[%clk 0:00:09]} 30. Bf4 {[%clk 0:01:52]}  a5 {[%clk 0:00:08]} 31. a3 {[%clk 0:01:52]}  bxa3 {[%clk 0:00:03]} 32. Rxa3 {[%clk 0:01:52]}  Ra8 {[%clk 0:00:03]} 33. Be5 {[%clk 0:01:52]}  a4 {[%clk 0:00:02]} 34. bxa4 {[%clk 0:01:48]}  Nb1 {[%clk 0:00:02]} 35. Rda2 {[%clk 0:01:45]}  Nxa3 {[%clk 0:00:02]} 36. Rxa3 {[%clk 0:01:46]}  Rxa4 {[%clk 0:00:03]} 37. Rb3 {[%clk 0:01:46]}  Ra7 {[%clk 0:00:03]} 38. Rb8 {[%clk 0:01:47]}  Bc6 {[%clk 0:00:01]} 39. Rh8 {[%clk 0:01:46]}  Rb7 {[%clk 0:00:02]} 40. Rxh7+ {[%clk 0:01:46]}  Kg8 {[%clk 0:00:02]} 41. Rh8+ {[%clk 0:01:47]}  Kf7 {[%clk 0:00:03]} 42. g4 {[%clk 0:01:47]}  fxg4 {[%clk 0:00:03]} 43. fxg4 {[%clk 0:01:48]}  Rb3 {[%clk 0:00:00]} 44. g5 {[%clk 0:01:48]} 1-0

[Event "December 19 Early 2023"]
[Site "https://www.chess.com"]
[Date "2023.12.19"]
[Round "3"]
[White "Garcia Ramos, Daniel"]
[Black "Mesa Cruz, Juan Carlos"]
[Result "1-0"]
[Board "55"]
[TimeControl "180+1"]
[WhiteFideId "32010311"]
[BlackFideId "6423400"]
[WhiteElo "2363"]
[BlackElo "2142"]
[WhiteTeam "ESP"]
[BlackTeam "DOM"]
[WhiteClock "0:02:09"]
[BlackClock "0:01:36"]

1. e4 {[%clk 0:03:00]}  c5 {[%clk 0:02:58]} 2. Nf3 {[%clk 0:03:00]}  d6 {[%clk 0:02:56]} 3. d4 {[%clk 0:03:01]}  cxd4 {[%clk 0:02:56]} 4. Nxd4 {[%clk 0:03:01]}  Nf6 {[%clk 0:02:56]} 5. f3 {[%clk 0:03:02]}  a6 {[%clk 0:02:56]} 6. c4 {[%clk 0:03:02]}  e6 {[%clk 0:02:55]} 7. Nc3 {[%clk 0:03:02]}  Be7 {[%clk 0:02:56]} 8. Be3 {[%clk 0:03:03]}  O-O {[%clk 0:02:56]} 9. Qd2 {[%clk 0:03:03]}  b6 {[%clk 0:02:56]} 10. Be2 {[%clk 0:03:02]}  Bb7 {[%clk 0:02:56]} 11. O-O {[%clk 0:03:03]}  d5 {[%clk 0:02:54]} 12. cxd5 {[%clk 0:03:02]}  exd5 {[%clk 0:02:54]} 13. e5 {[%clk 0:03:03]}  Nfd7 {[%clk 0:02:54]} 14. f4 {[%clk 0:03:02]}  Nc5 {[%clk 0:02:50]} 15. Rad1 {[%clk 0:02:57]}  Ne4 {[%clk 0:02:39]} 16. Nxe4 {[%clk 0:02:56]}  dxe4 {[%clk 0:02:40]} 17. f5 {[%clk 0:02:54]}  Nc6 {[%clk 0:02:18]} 18. f6 {[%clk 0:02:19]}  Nxd4 {[%clk 0:02:11]} 19. Bxd4 {[%clk 0:02:13]}  Bc5 {[%clk 0:01:36]} 20. Qg5 {[%clk 0:02:09]} 1-0